bitfinex/quotes_BTCUSD_20230101
["timestamp","ask_amount","ask_price","bid_price","bid_amount"]
[1672598544127,0.620876,16613.0,16612.0,1.20388336]
[1672598545109,0.620876,16613.0,16612.0,1.90388336]
[1672598545347,1.57286196,16614.0,16612.0,1.90388336]
[1672598545591,1.11007096,16614.0,16612.0,1.90388336]
[1672598545838,0.620876,16613.0,16612.0,1.90388336]
[1672598546095,0.61007096,16613.0,16612.0,1.90388336]
[1672598546776,1.23094696,16613.0,16612.0,1.90388336]
[1672598547772,1.23094696,16613.0,16612.0,1.90381169]
[1672598550965,1.26170876,16613.0,16612.0,1.90381169]
[1672598552701,1.26170876,16613.0,16612.0,1.91081169]
[1672598552950,1.26170876,16613.0,16612.0,1.90381169]
[1672598554413,1.26170876,16613.0,16612.0,1.91081169]
[1672598556649,1.26170876,16613.0,16612.0,1.21081169]
[1672598557175,0.620876,16613.0,16612.0,1.21081169]
[1672598557668,0.620876,16613.0,16612.0,1.91081169]
[1672598557912,1.23094696,16613.0,16612.0,1.30883769]
[1672598558142,1.23094696,16613.0,16612.0,1.30183769]
[1672598559166,0.61007096,16613.0,16612.0,1.30183769]
[1672598559402,0.61007096,16613.0,16612.0,1.30883769]
[1672598559641,0.61007096,16613.0,16612.0,1.30183769]
[1672598560142,0.61007096,16613.0,16612.0,1.30883769]
[1672598561919,1.23094696,16613.0,16612.0,1.30883769]
[1672598566420,1.26118362,16613.0,16612.0,1.30883769]
[1672598567394,0.64030762,16613.0,16612.0,1.30883769]
[1672598568332,0.61007096,16613.0,16612.0,1.30883769]
[1672598568977,1.23094696,16613.0,16612.0,1.30883769]
[1672598569225,1.23094696,16613.0,16612.0,0.60883769]
[1672598569505,1.23094696,16613.0,16612.0,0.60876059]
[1672598570220,1.23094696,16613.0,16612.0,1.30876059]
[1672598570468,0.61007096,16613.0,16612.0,1.30876059]
[1672598573472,0.64030711,16613.0,16612.0,1.30876059]
[1672598575947,0.61007096,16613.0,16612.0,1.77155159]
[1672598576201,0.61007096,16613.0,16612.0,1.30876059]
[1672598577196,0.61007096,16613.0,16612.0,2.37352559]
[1672598577695,0.61007096,16614.0,16612.0,2.37352559]
[1672598578180,0.61007096,16614.0,16612.0,2.36652559]
[1672598578438,0.61007096,16614.0,16612.0,2.37352559]
[1672598578700,0.61007096,16614.0,16612.0,2.36652559]
[1672598579698,0.61007096,16614.0,16612.0,2.37552559]
[1672598580194,0.54215702,16613.0,16612.0,2.37552559]
[1672598580439,0.54215702,16613.0,16612.0,2.36652559]
[1672598584507,0.54205463,16613.0,16612.0,2.36652559]
[1672598585256,0.61007096,16614.0,16612.0,1.90373459]
[1672598585522,1.11007096,16614.0,16612.0,2.36652559]
[1672598586032,0.61007096,16614.0,16612.0,2.36652559]
[1672598591534,0.61007096,16614.0,16612.0,1.66652559]
[1672598591788,0.620876,16613.0,16612.0,1.66652559]
[1672598592036,1.11007096,16614.0,16612.0,1.20373459]
[1672598592271,0.620876,16613.0,16612.0,1.06455159]
[1672598592513,1.11007096,16614.0,16612.0,1.30176059]
[1672598592765,1.11007096,16614.0,16612.0,1.90373459]
[1672598593545,0.61007096,16614.0,16612.0,1.90373459]
[1672598593763,0.61007096,16614.0,16612.0,2.36652559]
[1672598594010,0.54199548,16613.0,16612.0,2.36652559]
[1672598594279,0.54199548,16613.0,16612.0,1.90373459]
[1672598594541,0.54199548,16613.0,16612.0,2.36652559]
[1672598598511,0.54199548,16613.0,16612.0,1.66652559]
[1672598599005,0.54199548,16613.0,16612.0,1.20373459]
[1672598599495,0.54199548,16613.0,16612.0,1.90373459]
[1672598600494,0.54199548,16613.0,16612.0,2.36652559]
[1672598606942,0.54189562,16613.0,16612.0,2.36652559]
[1672598607702,0.54189562,16613.0,16612.0,2.66652559]
[1672598607946,0.721716,16615.0,16612.0,2.66652559]
[1672598608454,0.721716,16615.0,16612.0,2.36652559]
[1672598609250,0.721716,16615.0,16612.0,2.37352559]
[1672598609489,0.721716,16615.0,16612.0,2.87064908]
[1672598609984,0.721716,16615.0,16613.0,0.5]
[1672598610230,0.721716,16615.0,16613.0,1.301933]
[1672598610714,0.721716,16615.0,16613.0,1.8054285]
[1672598611451,0.721716,16615.0,16613.0,1.8124285]
[1672598616486,0.721716,16615.0,16614.0,0.620876]
[1672598616731,0.721716,16615.0,16614.0,0.7]
[1672598617215,0.721716,16615.0,16614.0,1.320876]
[1672598618221,0.721716,16615.0,16614.0,0.7]
[1672598618706,0.721716,16615.0,16614.0,0.707]
[1672598619435,0.11164504,16615.0,16614.0,0.707]
[1672598619682,0.721716,16615.0,16614.0,0.707]
[1672598620976,0.721716,16615.0,16614.0,0.7]
[1672598621479,0.721716,16615.0,16614.0,0.707]
[1672598623479,0.11164504,16615.0,16614.0,0.707]
[1672598623988,0.721716,16615.0,16614.0,0.7]
[1672598624232,0.721716,16615.0,16614.0,0.707]
[1672598624736,0.721716,16615.0,16614.0,0.7]
[1672598624989,0.721716,16615.0,16613.0,1.7073085]
[1672598625245,0.54190993,16614.0,16613.0,1.7073085]
[1672598626272,0.54190993,16614.0,16613.0,2.4073085]
[1672598627503,0.54190993,16614.0,16613.0,3.0281845]
[1672598629718,0.721716,16615.0,16613.0,3.0281845]
[1672598629935,0.721716,16615.0,16613.0,2.8700995]
[1672598630427,0.721716,16615.0,16613.0,2.4073085]
[1672598631219,0.721716,16615.0,16613.0,2.4143085]
[1672598631952,0.721716,16615.0,16613.0,2.41422147]
[1672598632713,0.721716,16615.0,16613.0,1.81231247]
[1672598632970,0.61007096,16614.0,16613.0,1.81231247]
[1672598633231,1.23094696,16614.0,16613.0,1.81231247]
[1672598633700,1.23094696,16614.0,16613.0,1.80531247]
[1672598634426,0.61007096,16614.0,16613.0,1.80531247]
[1672598635472,0.61007096,16614.0,16613.0,1.301904]
[1672598638909,0.61007096,16614.0,16613.0,0.601904]
[1672598639155,1.23094696,16614.0,16613.0,0.601904]
[1672598639402,0.61007096,16614.0,16613.0,0.601904]
[1672598639773,0.61007096,16614.0,16613.0,1.301904]
[1672598645893,0.61007096,16614.0,16613.0,0.601904]
[1672598646672,0.61007096,16614.0,16613.0,1.301904]
[1672598647428,0.721716,16615.0,16613.0,1.301904]
[1672598647672,0.721716,16615.0,16613.0,1.764695]
[1672598647922,0.721716,16615.0,16613.0,1.301904]
[1672598648689,0.61007096,16614.0,16613.0,1.301904]
[1672598649160,0.721716,16615.0,16613.0,1.301904]
[1672598649442,0.721716,16615.0,16613.0,1.764695]
[1672598650448,0.721716,16615.0,16613.0,1.771695]
[1672598652903,0.721716,16615.0,16613.0,1.071695]
[1672598653962,0.721716,16615.0,16613.0,1.771695]
[1672598655227,0.721716,16615.0,16613.0,1.308904]
[1672598655742,0.721716,16615.0,16613.0,1.30883419]
[1672598658491,0.61007096,16614.0,16613.0,1.30883419]
[1672598659207,0.721716,16615.0,16613.0,1.30883419]
[1672598659710,0.721716,16615.0,16613.0,1.76462519]
[1672598660469,0.721716,16615.0,16613.0,1.77162519]
[1672598670601,0.61007096,16614.0,16613.0,1.30883419]
[1672598670849,1.23094696,16614.0,16613.0,1.30883419]
[1672598672083,1.23086004,16614.0,16613.0,1.30183419]
[1672598673359,0.60998404,16614.0,16613.0,0.7]
[1672598673617,1.10998404,16614.0,16613.0,0.7]
[1672598674282,1.10998404,16614.0,16613.0,0.70024071]
[1672598674953,0.60998404,16614.0,16613.0,0.70024071]
[1672598677879,0.60998404,16614.0,16613.0,1.30217871]
[1672598679316,0.60998404,16614.0,16613.0,0.60217871]
[1672598680281,0.60998404,16614.0,16613.0,1.30217871]
[1672598683513,0.60998404,16614.0,16613.0,1.301938]
[1672598687193,0.60998404,16614.0,16613.0,1.30217871]
[1672598687956,0.61164504,16615.0,16613.0,1.301938]
[1672598688223,1.06398937,16615.0,16613.0,0.7]
[1672598688486,0.60976343,16614.0,16613.0,0.7]
[1672598689498,0.60976343,16614.0,16613.0,0.707]
[1672598690242,0.61164504,16615.0,16613.0,0.707]
[1672598690500,0.60973058,16614.0,16613.0,0.707]
[1672598690992,1.23060658,16614.0,16613.0,0.707]
[1672598691236,1.23060658,16614.0,16613.0,0.7]
[1672598691731,1.23060658,16614.0,16612.0,1.77226323]
[1672598692000,0.60973058,16614.0,16612.0,2.23505423]
[1672598692750,0.60973058,16614.0,16613.0,0.7]
[1672598692995,0.60973058,16614.0,16613.0,0.707]
[1672598693468,0.60973058,16614.0,16613.0,0.7]
[1672598695197,0.60973058,16614.0,16613.0,0.6999115]
[1672598698728,0.60973058,16614.0,16612.0,1.77224323]
[1672598698974,0.60973058,16614.0,16612.0,2.23503423]
[1672598699721,0.60973058,16614.0,16613.0,0.7]
[1672598700974,0.72137562,16615.0,16613.0,0.7]
[1672598702455,0.60973058,16614.0,16613.0,0.707]
[1672598703435,0.60973058,16614.0,16613.0,0.7]
[1672598706389,0.61164504,16615.0,16613.0,0.7]
[1672598706908,0.60986621,16614.0,16613.0,0.7]
[1672598707172,1.23074221,16614.0,16613.0,0.7]
[1672598707411,0.60986621,16614.0,16613.0,0.707]
[1672598707654,0.60986621,16614.0,16613.0,0.7]
[1672598708164,0.60986621,16614.0,16613.0,1.301938]
[1672598712485,0.60986621,16614.0,16613.0,0.7]
[1672598712486,1.23074221,16614.0,16613.0,0.7]
[1672598712737,0.620876,16614.0,16613.0,0.7]
[1672598712987,0.61164504,16615.0,16613.0,0.7]
[1672598713502,1.07316971,16614.0,16613.0,0.7]
[1672598713757,1.32584399,16614.0,16613.0,0.7]
[1672598715324,1.32584399,16614.0,16613.0,0.71]
[1672598715574,1.07316971,16614.0,16613.0,0.71]
[1672598717059,1.07316971,16614.0,16613.0,0.7099307]
[1672598720332,1.07316971,16614.0,16613.0,0.6999307]
[1672598720589,1.07316971,16614.0,16613.0,0.7099307]
[1672598720840,1.07316971,16614.0,16613.0,0.6999307]
[1672598721057,1.07316971,16614.0,16613.0,0.7099307]
[1672598723848,1.07316971,16614.0,16613.0,0.01]
[1672598724376,1.36202659,16614.0,16613.0,0.01]
[1672598724872,1.36202659,16614.0,16613.0,0.71]
[1672598725617,0.74115059,16614.0,16613.0,0.71]
[1672598725876,1.36202659,16614.0,16613.0,0.71]
[1672598727158,0.74115059,16614.0,16613.0,0.71]
[1672598727387,1.36202659,16614.0,16613.0,0.71]
[1672598727636,0.74115059,16614.0,16613.0,0.71]
[1672598727895,1.36202659,16614.0,16613.0,0.71]
[1672598728120,0.89025859,16614.0,16613.0,0.71]
[1672598729247,0.74115059,16614.0,16613.0,0.71]
[1672598729488,1.36202659,16614.0,16613.0,0.71]
[1672598730444,0.74115059,16614.0,16613.0,0.71]
[1672598730691,1.96392859,16614.0,16613.0,0.71]
[1672598730946,1.96392859,16614.0,16613.0,0.01]
[1672598731444,1.96392859,16614.0,16611.0,1.00580473]
[1672598731690,0.75846627,16613.0,16611.0,0.54301373]
[1672598731943,1.06145517,16613.0,16612.0,0.7]
[1672598732182,1.10935827,16613.0,16612.0,0.7]
[1672598732436,1.73023427,16613.0,16612.0,0.7]
[1672598732682,1.99233359,16613.0,16612.0,0.7]
[1672598733431,1.37145759,16613.0,16612.0,0.7]
[1672598734420,1.37145759,16613.0,16612.0,0.707]
[1672598737227,2.02175497,16613.0,16612.0,0.707]
[1672598737964,2.02175497,16613.0,16612.0,0.007]
[1672598738967,1.86448659,16613.0,16612.0,0.707]
[1672598739219,2.0217669,16613.0,16612.0,0.707]
[1672598739482,1.86449047,16613.0,16612.0,0.707]
[1672598739941,1.86446403,16613.0,16612.0,0.707]
[1672598740234,1.4123967,16613.0,16612.0,0.707]
[1672598740736,1.60232572,16613.0,16612.0,0.7069205]
[1672598741004,1.6023257,16613.0,16612.0,0.7069205]
[1672598741250,1.15029738,16613.0,16612.0,0.7069205]
[1672598743780,1.60236732,16613.0,16612.0,0.7069205]
[1672598745285,1.60236732,16613.0,16612.0,0.4569205]
[1672598745523,1.60236732,16613.0,16610.0,1.56023768]
[1672598745764,0.75859129,16612.0,16611.0,0.7]
[1672598746029,0.60948329,16612.0,16611.0,0.7]
[1672598747078,0.61648329,16612.0,16611.0,0.702]
[1672598750550,0.007,16612.0,16611.0,0.702]
[1672598750789,0.61683138,16612.0,16611.0,0.702]
[1672598751289,0.007,16612.0,16611.0,0.702]
[1672598753074,0.007,16612.0,16611.0,0.002]
[1672598754060,0.007,16612.0,16611.0,0.702]
[1672598758082,0.007,16612.0,16611.0,0.002]
[1672598758323,0.627876,16612.0,16611.0,0.002]
[1672598758807,0.84900743,16612.0,16611.0,0.002]
[1672598759792,1.30113866,16612.0,16611.0,0.002]
[1672598760776,0.84900743,16612.0,16611.0,0.002]
[1672598761023,0.627876,16612.0,16611.0,0.002]
[1672598762056,0.007,16612.0,16611.0,0.002]
[1672598763034,0.627876,16612.0,16611.0,0.002]
[1672598763298,0.007,16612.0,16611.0,0.002]
[1672598764680,0.007,16612.0,16611.0,0.702]
[1672598765382,0.2262492,16612.0,16611.0,0.702]
[1672598767876,0.507,16612.0,16611.0,0.70188664]
[1672598769179,0.007,16612.0,16611.0,0.70188664]
[1672598770676,0.007,16612.0,16611.0,0.00188664]
[1672598770926,0.50692695,16612.0,16611.0,0.00188664]
[1672598771180,1.12780295,16612.0,16611.0,0.00188664]
[1672598771663,1.12780295,16612.0,16611.0,0.70188664]
[1672598772163,0.50692695,16612.0,16611.0,0.70188664]
[1672598775733,1.12780295,16612.0,16611.0,0.70188664]
[1672598777662,1.12780295,16612.0,16611.0,0.00188664]
[1672598777902,1.57996168,16612.0,16611.0,0.00188664]
[1672598778633,1.57996168,16612.0,16611.0,0.70188664]
[1672598779154,2.00012386,16612.0,16611.0,0.70188664]
[1672598779885,2.60209786,16612.0,16611.0,0.70188664]
[1672598780416,2.60209786,16612.0,16611.0,0.00188664]
[1672598782199,2.14993913,16612.0,16611.0,0.00188664]
[1672598782685,1.72977695,16612.0,16611.0,0.00188664]
[1672598783958,2.18189266,16612.0,16611.0,0.00188664]
[1672598784211,1.72977695,16612.0,16611.0,0.00188664]
[1672598787635,0.50692695,16612.0,16611.0,0.00188664]
[1672598788872,1.12780295,16612.0,16611.0,0.00188664]
[1672598789639,1.12780295,16612.0,16611.0,0.70188664]
[1672598789834,0.50692695,16612.0,16611.0,0.70188664]
[1672598790891,0.00692695,16612.0,16611.0,0.70188664]
[1672598791365,0.00692695,16612.0,16611.0,0.70180137]
[1672598792833,0.61692827,16612.0,16611.0,0.70180137]
[1672598793061,0.00692695,16612.0,16611.0,0.70180137]
[1672598793562,0.61693239,16612.0,16611.0,0.70180137]
[1672598795039,0.00692695,16612.0,16611.0,0.70180137]
[1672598795494,0.6168824,16612.0,16611.0,0.70180137]
[1672598797727,0.6168824,16612.0,16611.0,0.00180137]
[1672598797962,1.2377584,16612.0,16611.0,0.00180137]
[1672598798260,0.62780295,16612.0,16611.0,0.00180137]
[1672598798783,0.62780295,16612.0,16611.0,0.70180137]
[1672598798961,0.00692695,16612.0,16611.0,0.70180137]
[1672598799701,0.61679854,16612.0,16611.0,0.70180137]
[1672598800688,1.22666897,16612.0,16611.0,0.70180137]
[1672598800924,1.84754497,16612.0,16611.0,0.70180137]
[1672598804219,2.04580945,16612.0,16611.0,0.70180137]
[1672598804708,1.84754497,16612.0,16611.0,0.70180137]
[1672598810307,1.83649995,16612.0,16611.0,0.70180137]
[1672598810815,1.84754497,16612.0,16611.0,0.00180137]
[1672598811793,1.84754497,16612.0,16611.0,0.70180137]
[1672598812542,1.22666897,16612.0,16611.0,0.70180137]
[1672598814329,1.22666897,16612.0,16611.0,0.70172518]
[1672598817897,1.22666897,16612.0,16611.0,0.00172518]
[1672598818649,2.54579042,16612.0,16611.0,0.00172518]
[1672598818896,2.09354701,16612.0,16611.0,0.70172518]
[1672598819143,2.54575163,16612.0,16611.0,0.70172518]
[1672598819408,2.29974959,16612.0,16611.0,0.70172518]
[1672598819906,1.84754497,16612.0,16611.0,0.70172518]
[1672598821194,2.29975811,16612.0,16611.0,0.70172518]
[1672598822488,1.84754497,16612.0,16611.0,0.70172518]
[1672598822751,2.15563451,16612.0,16611.0,0.70172518]
[1672598824744,2.15563451,16612.0,16611.0,0.00172518]
[1672598825474,1.84754497,16612.0,16611.0,0.00172518]
[1672598825730,1.84754497,16612.0,16611.0,0.70172518]
[1672598826015,2.29970881,16612.0,16611.0,0.70172518]
[1672598827017,2.90168281,16612.0,16611.0,0.70172518]
[1672598829779,2.90168281,16612.0,16611.0,0.69672518]
[1672598830031,3.25498943,16612.0,16611.0,0.69672518]
[1672598831809,3.25498943,16612.0,16610.0,0.58441009]
[1672598832057,0.75922077,16611.0,16610.0,0.58441009]
[1672598832321,0.75922077,16611.0,16609.0,0.46290756]
[1672598832598,0.620876,16610.0,16608.0,1.92829956]
[1672598832864,0.69141654,16609.0,16608.0,1.51759956]
[1672598833113,1.16318454,16609.0,16608.0,1.04240627]
[1672598833375,0.54230854,16609.0,16608.0,1.04240627]
[1672598834864,0.54230854,16609.0,16608.0,1.18540627]
[1672598837864,0.54230854,16609.0,16608.0,1.88540627]
[1672598838872,0.54230854,16609.0,16608.0,1.18540627]
[1672598839613,0.54230854,16609.0,16608.0,0.72249871]
[1672598839891,0.54230854,16609.0,16608.0,1.42249871]
[1672598840643,0.54230854,16609.0,16608.0,1.88540627]
[1672598841646,0.61011277,16610.0,16608.0,1.42249871]
[1672598841879,0.61011277,16610.0,16608.0,1.88540627]
[1672598842156,0.54218668,16609.0,16608.0,1.88540627]
[1672598842403,0.54218668,16609.0,16608.0,1.42249871]
[1672598842652,0.54218668,16609.0,16608.0,1.88540627]
[1672598843144,0.54218668,16609.0,16608.0,1.74240627]
[1672598845947,0.55118668,16609.0,16608.0,1.74240627]
[1672598847427,0.55118668,16609.0,16608.0,1.27949871]
[1672598848194,0.55118668,16609.0,16608.0,1.74240627]
[1672598848454,0.55118668,16609.0,16608.0,1.27949871]
[1672598848696,0.54218668,16609.0,16608.0,1.27949871]
[1672598849158,1.17206268,16609.0,16608.0,1.27949871]
[1672598849399,0.55118668,16609.0,16608.0,1.27949871]
[1672598849909,1.06202129,16610.0,16608.0,0.57949871]
[1672598850152,1.06202129,16610.0,16608.0,1.04234018]
[1672598850153,0.009,16609.0,16608.0,1.04234018]
[1672598850405,0.009,16609.0,16608.0,0.57943262]
[1672598850899,0.54216664,16609.0,16608.0,1.04234018]
[1672598851159,0.54216664,16609.0,16608.0,1.74434018]
[1672598851443,0.54216664,16609.0,16608.0,1.74234018]
[1672598851707,0.55116664,16609.0,16608.0,1.74234018]
[1672598856461,0.55116664,16609.0,16608.0,2.36321618]
[1672598857713,0.54216664,16609.0,16608.0,1.74234018]
[1672598858200,0.55116664,16609.0,16608.0,1.74234018]
[1672598858443,0.54216664,16609.0,16608.0,1.27943262]
[1672598858693,0.54216664,16609.0,16608.0,1.74234018]
[1672598859192,0.55116664,16609.0,16608.0,2.36321618]
[1672598859933,0.55116664,16609.0,16608.0,1.74234018]
[1672598860402,0.55116664,16609.0,16608.0,2.36321618]
[1672598860910,0.55116664,16609.0,16608.0,2.15503018]
[1672598861152,0.55116664,16609.0,16608.0,1.74234018]
[1672598863145,0.55116664,16609.0,16608.0,2.36321618]
[1672598863385,0.55116664,16609.0,16608.0,1.74234018]
[1672598863629,0.55116664,16609.0,16608.0,2.36321618]
[1672598863845,0.55116664,16609.0,16608.0,1.74234018]
[1672598864098,0.55116664,16609.0,16608.0,2.36321618]
[1672598864355,0.55116664,16609.0,16608.0,1.66321618]
[1672598864622,0.54216664,16609.0,16608.0,1.04234018]
[1672598864892,0.55116664,16609.0,16608.0,1.04234018]
[1672598865382,0.55116664,16609.0,16608.0,1.74234018]
[1672598865627,0.55116664,16609.0,16608.0,2.36321618]
[1672598866765,0.55116664,16609.0,16608.0,2.66321618]
[1672598867184,0.55116664,16609.0,16608.0,2.36321618]
[1672598867438,0.55116664,16609.0,16608.0,2.66321618]
[1672598868190,0.55116664,16609.0,16608.0,2.36321618]
[1672598869413,0.55116664,16609.0,16608.0,2.66321618]
[1672598869658,0.55116664,16609.0,16608.0,2.36321618]
[1672598871421,0.55116664,16609.0,16608.0,1.66321618]
[1672598871667,0.55116664,16609.0,16608.0,1.04234018]
[1672598872211,0.55116664,16609.0,16608.0,1.66321618]
[1672598872458,0.55116664,16609.0,16608.0,2.36321618]
[1672598873192,0.54216664,16609.0,16608.0,2.36321618]
[1672598873737,0.54216664,16609.0,16608.0,1.74234018]
[1672598873980,0.54216664,16609.0,16608.0,2.36309977]
[1672598874484,0.55116664,16609.0,16608.0,2.36309977]
[1672598874725,0.54216664,16609.0,16608.0,2.36309977]
[1672598874967,0.55116664,16609.0,16608.0,2.36309977]
[1672598875241,0.55116664,16609.0,16608.0,1.74222377]
[1672598875486,0.55116664,16609.0,16608.0,2.36309977]
[1672598876784,0.55116664,16609.0,16608.0,1.74222377]
[1672598877009,0.55116664,16609.0,16608.0,1.27931621]
[1672598877752,0.54216664,16609.0,16608.0,1.27931621]
[1672598877995,0.55116664,16609.0,16608.0,1.27931621]
[1672598878242,0.55116664,16609.0,16608.0,1.74222377]
[1672598878491,0.55116664,16609.0,16608.0,1.04222377]
[1672598879237,0.55116664,16609.0,16608.0,0.57931621]
[1672598879486,0.55116664,16609.0,16608.0,1.27931621]
[1672598879737,0.55116664,16609.0,16608.0,1.74222377]
[1672598880234,0.55116664,16609.0,16608.0,2.36309977]
[1672598880475,0.54216664,16609.0,16608.0,2.36309977]
[1672598880741,0.55116664,16609.0,16608.0,1.27931621]
[1672598880954,0.55116664,16609.0,16608.0,1.74222377]
[1672598881234,0.55116664,16609.0,16608.0,1.27931621]
[1672598885313,0.55116664,16609.0,16608.0,0.57931621]
[1672598886045,0.55107134,16609.0,16608.0,0.57931621]
[1672598886553,0.55107134,16609.0,16608.0,1.27931621]
[1672598886790,0.54207134,16609.0,16608.0,1.27931621]
[1672598887049,0.55107134,16609.0,16608.0,1.27931621]
[1672598888539,0.009,16609.0,16608.0,1.27931621]
[1672598894955,0.009,16609.0,16608.0,0.57931621]
[1672598895674,0.629876,16609.0,16608.0,0.57931621]
[1672598895920,0.629876,16609.0,16608.0,1.27931621]
[1672598896171,0.009,16609.0,16608.0,1.27931621]
[1672598901908,0.009,16609.0,16608.0,0.57931621]
[1672598902904,0.009,16609.0,16608.0,1.27931621]
[1672598903400,0.009,16609.0,16608.0,0.7]
[1672598903658,0.61911277,16609.0,16608.0,0.7]
[1672598903902,0.61011277,16609.0,16608.0,0.7]
[1672598904386,0.61911277,16609.0,16608.0,0.7]
[1672598904682,0.61011277,16609.0,16608.0,0.7]
[1672598904919,0.61911277,16609.0,16608.0,0.7]
[1672598907990,0.61911277,16609.0,16608.0,0.69990778]
[1672598914675,0.61911277,16609.0,16607.0,1.17278218]
[1672598914931,0.54207792,16608.0,16607.0,0.70987462]
[1672598915710,0.54207792,16608.0,16607.0,1.40987462]
[1672598916973,0.54207792,16608.0,16607.0,1.47887462]
[1672598917723,0.54207792,16608.0,16607.0,1.40987462]
[1672598917986,0.55107792,16608.0,16607.0,1.40987462]
[1672598921721,0.55107792,16608.0,16607.0,0.70987462]
[1672598922743,0.55107792,16608.0,16607.0,1.40987462]
[1672598926774,0.55107792,16608.0,16607.0,0.93508633]
[1672598927378,0.009,16608.0,16607.0,0.93508633]
[1672598930212,0.009,16608.0,16607.0,0.93502281]
[1672598930431,0.55115357,16608.0,16607.0,0.93502281]
[1672598931533,0.009,16608.0,16607.0,0.93502281]
[1672598935076,1.06175449,16609.0,16607.0,0.93502281]
[1672598935329,0.61011277,16609.0,16607.0,0.93502281]
[1672598935568,1.11011277,16609.0,16607.0,0.93502281]
[1672598935828,1.56171554,16609.0,16607.0,0.93502281]
[1672598936070,0.629876,16608.0,16607.0,0.93502281]
[1672598936335,0.620876,16608.0,16607.0,0.93502281]
[1672598936555,1.57071554,16609.0,16607.0,0.23702281]
[1672598936848,1.67392608,16609.0,16607.0,0.23702281]
[1672598937065,1.67392608,16609.0,16607.0,0.72497284]
[1672598937823,1.67392608,16609.0,16607.0,1.42497284]
[1672598938310,1.17392608,16609.0,16607.0,1.42497284]
[1672598938545,1.07071554,16609.0,16607.0,1.42497284]
[1672598939964,1.07071192,16609.0,16607.0,1.42497284]
[1672598941154,0.61911277,16609.0,16607.0,1.42497284]
[1672598941427,1.0707088,16609.0,16607.0,1.42497284]
[1672598941901,1.0617088,16609.0,16607.0,1.42297284]
[1672598942153,1.0707088,16609.0,16607.0,1.42497284]
[1672598942388,0.61011277,16608.0,16607.0,1.42297284]
[1672598942633,1.57966936,16609.0,16607.0,1.42497284]
[1672598943176,0.61011277,16608.0,16607.0,1.42497284]
[1672598943394,0.61011277,16608.0,16607.0,1.42297284]
[1672598943615,0.61911277,16608.0,16607.0,0.72297284]
[1672598944598,1.23998877,16608.0,16607.0,1.42297284]
[1672598944848,0.61911277,16608.0,16607.0,1.42297284]
[1672598950664,0.61911277,16608.0,16607.0,0.72297284]
[1672598951693,0.61911277,16608.0,16607.0,1.42297284]
[1672598952768,0.61911277,16608.0,16607.0,1.42291243]
[1672598954232,0.61911277,16608.0,16607.0,0.9349624]
[1672598954448,1.23998877,16608.0,16607.0,0.9349624]
[1672598955553,0.61911277,16608.0,16607.0,0.9349624]
[1672598957827,0.61911277,16608.0,16607.0,0.2349624]
[1672598958362,0.61911277,16608.0,16607.0,0.9349624]
[1672598958862,1.23998877,16608.0,16607.0,0.9349624]
[1672598959367,0.61911277,16608.0,16607.0,0.9349624]
[1672598959626,0.61011277,16608.0,16607.0,0.9349624]
[1672598959881,0.61911277,16608.0,16607.0,0.9349624]
[1672598960106,0.61011277,16608.0,16607.0,0.9349624]
[1672598960362,0.61911277,16608.0,16607.0,0.9349624]
[1672598961569,0.61011277,16608.0,16607.0,0.9349624]
[1672598962301,1.23998877,16608.0,16607.0,0.9349624]
[1672598962536,1.23098877,16608.0,16607.0,0.9349624]
[1672598962754,1.23998877,16608.0,16607.0,0.9349624]
[1672598962986,1.23098877,16608.0,16607.0,0.9349624]
[1672598963281,1.23998877,16608.0,16607.0,0.9429624]
[1672598963521,1.26959975,16608.0,16607.0,0.9429624]
[1672598967437,2.91282836,16608.0,16607.0,0.9429624]
[1672598967685,2.67276834,16608.0,16607.0,0.2429624]
[1672598972905,2.67276834,16608.0,16607.0,0.24287325]
[1672598974290,2.31517766,16608.0,16607.0,0.24287325]
[1672598977244,1.69430166,16608.0,16607.0,0.24287325]
[1672598978047,2.31517766,16608.0,16607.0,0.24287325]
[1672598988507,2.30617766,16608.0,16607.0,0.23487325]
[1672598988750,2.31517766,16608.0,16607.0,0.24287325]
[1672598989040,2.6867395,16608.0,16607.0,0.23487325]
[1672598989315,2.6957395,16608.0,16607.0,0.24287325]
[1672598989555,2.6957395,16608.0,16607.0,0.23487325]
[1672598989797,2.7047395,16608.0,16607.0,0.24287325]
[1672598990069,2.6867395,16608.0,16607.0,0.23487325]
[1672598990302,2.6957395,16608.0,16607.0,0.24287325]
[1672598990545,2.6867395,16608.0,16607.0,0.23487325]
[1672598991529,2.6957395,16608.0,16607.0,0.24287325]
[1672598991781,2.6867395,16608.0,16607.0,0.23487325]
[1672598992031,2.6957395,16608.0,16607.0,0.24287325]
[1672598993278,2.6957395,16608.0,16607.0,0.24276727]
[1672598999241,3.58407022,16608.0,16607.0,0.24276727]
[1672599000522,2.6957395,16608.0,16607.0,0.24276727]
[1672599000775,2.28549644,16608.0,16607.0,0.24276727]
[1672599004820,2.31564097,16608.0,16607.0,0.24276727]
[1672599006273,3.20397169,16608.0,16607.0,0.24276727]
[1672599006522,2.31564097,16608.0,16607.0,0.24276727]
[1672599006760,2.69624924,16608.0,16607.0,0.24276727]
[1672599007006,3.58457996,16608.0,16607.0,0.24276727]
[1672599008021,3.59527051,16608.0,16607.0,0.24276727]
[1672599014678,3.59527051,16608.0,16607.0,0.24269082]
[1672599028380,1.70545552,16608.0,16607.0,0.24269082]
[1672599028877,1.70545552,16608.0,16607.0,0.72881633]
[1672599029135,0.62180955,16608.0,16607.0,0.72881633]
[1672599030646,0.62180955,16608.0,16607.0,1.42881633]
[1672599031659,1.23157165,16608.0,16607.0,1.42881633]
[1672599033929,0.62945265,16608.0,16607.0,1.42881633]
[1672599039680,0.62945265,16608.0,16607.0,1.42873457]
[1672599039920,0.62945265,16608.0,16607.0,0.94260906]
[1672599042680,1.08108397,16608.0,16607.0,0.94260906]
[1672599042936,0.62917294,16608.0,16607.0,0.94260906]
[1672599043159,0.62917236,16608.0,16607.0,0.94260906]
[1672599043402,1.28064525,16608.0,16607.0,0.94260906]
[1672599043650,1.28064525,16608.0,16607.0,0.24260906]
[1672599043892,0.65976925,16608.0,16607.0,0.24260906]
[1672599044106,1.28064525,16608.0,16607.0,0.24260906]
[1672599044344,0.65976925,16608.0,16607.0,0.24260906]
[1672599044636,1.28064525,16608.0,16607.0,0.24260906]
[1672599044890,1.28064525,16608.0,16607.0,0.94260906]
[1672599045149,0.65976925,16608.0,16607.0,0.94260906]
[1672599050856,0.65976925,16608.0,16607.0,0.24260906]
[1672599051107,1.28064525,16608.0,16607.0,0.24260906]
[1672599051843,1.28064525,16608.0,16607.0,0.94260906]
[1672599052088,0.65976925,16608.0,16607.0,0.94260906]